[Event "Early-Titled-Tuesday-Blitz-March-05-2024"]
[Site "Chess.com"]
[Date "2024.03.05"]
[Round "1"]
[White "BilicVladimir"]
[Black "martinmena"]
[Result "1-0"]
[WhiteElo "2621"]
[BlackElo "2322"]
[TimeControl "180+1"]
[EndTime "8:07:04 PST"]
[Termination "BilicVladimir won by resignation"]

1. e4 {[%clk 0:03:00.9]} 1... c6 {[%clk 0:02:58.8]} 2. d4 {[%clk 0:03:00.2]}
2... d5 {[%clk 0:02:59.6]} 3. Nc3 {[%clk 0:03:00.5]} 3... dxe4 {[%clk
0:02:59.7]} 4. Nxe4 {[%clk 0:03:00.6]} 4... Nd7 {[%clk 0:03:00.6]} 5. Nf3 {[%clk
0:02:59.9]} 5... Ngf6 {[%clk 0:02:59.7]} 6. Nxf6+ {[%clk 0:03:00.5]} 6... Nxf6
{[%clk 0:03:00.5]} 7. Ne5 {[%clk 0:03:00.7]} 7... Be6 {[%clk 0:02:56.5]} 8. Be2
{[%clk 0:02:58.8]} 8... g6 {[%clk 0:02:55.1]} 9. O-O {[%clk 0:02:58.6]} 9... Bg7
{[%clk 0:02:55.7]} 10. c3 {[%clk 0:02:58.7]} 10... O-O {[%clk 0:02:55.4]} 11.
Bf4 {[%clk 0:02:58.6]} 11... Nd5 {[%clk 0:02:53.6]} 12. Bg3 {[%clk 0:02:58.6]}
12... f6 {[%clk 0:02:31.5]} 13. Nd3 {[%clk 0:02:57.1]} 13... Bf5 {[%clk
0:02:26.1]} 14. Re1 {[%clk 0:02:55.6]} 14... Re8 {[%clk 0:02:10.2]} 15. Bg4
{[%clk 0:02:53.7]} 15... Bxg4 {[%clk 0:02:04.5]} 16. Qxg4 {[%clk 0:02:52.3]}
16... f5 {[%clk 0:01:59.6]} 17. Qe2 {[%clk 0:02:46.8]} 17... e6 {[%clk
0:01:51.4]} 18. Be5 {[%clk 0:02:46.5]} 18... Qg5 {[%clk 0:01:42.5]} 19. Bxg7
{[%clk 0:02:43.4]} 19... Kxg7 {[%clk 0:01:43.4]} 20. Qe5+ {[%clk 0:02:42]} 20...
Qf6 {[%clk 0:01:39.9]} 21. Qg3 {[%clk 0:02:41.4]} 21... Rad8 {[%clk 0:01:08.4]}
22. Re5 {[%clk 0:02:38.6]} 22... Rd7 {[%clk 0:01:06.3]} 23. Rae1 {[%clk
0:02:37.2]} 23... Rde7 {[%clk 0:01:06.3]} 24. h4 {[%clk 0:02:33.5]} 24... h5
{[%clk 0:01:05.1]} 25. Nf4 {[%clk 0:02:24.2]} 25... Nxf4 {[%clk 0:01:04.3]} 26.
Qxf4 {[%clk 0:02:24.4]} 26... Rd7 {[%clk 0:00:54.1]} 27. g3 {[%clk 0:02:23.5]}
27... Qf7 {[%clk 0:00:48.2]} 28. a4 {[%clk 0:02:21.4]} 28... Rd5 {[%clk
0:00:47.6]} 29. Qe3 {[%clk 0:02:20.6]} 29... Rxe5 {[%clk 0:00:45.5]} 30. Qxe5+
{[%clk 0:02:20.3]} 30... Qf6 {[%clk 0:00:46]} 31. Qd6 {[%clk 0:02:19.9]} 31...
Qe7 {[%clk 0:00:38]} 32. Qf4 {[%clk 0:02:15.4]} 32... Qf6 {[%clk 0:00:29.9]} 33.
Kg2 {[%clk 0:02:14.9]} 33... Re7 {[%clk 0:00:27.9]} 34. a5 {[%clk 0:02:14.7]}
34... a6 {[%clk 0:00:27.7]} 35. Qd6 {[%clk 0:02:11.7]} 35... Qf7 {[%clk
0:00:22.8]} 36. b4 {[%clk 0:02:10.5]} 36... Qf6 {[%clk 0:00:20.6]} 37. Re5
{[%clk 0:02:08.9]} 37... Qf7 {[%clk 0:00:19.9]} 38. Re3 {[%clk 0:02:06]} 38...
Qf6 {[%clk 0:00:18.5]} 39. c4 {[%clk 0:02:05.3]} 39... Qf7 {[%clk 0:00:18.8]}
40. d5 {[%clk 0:02:03.2]} 40... cxd5 {[%clk 0:00:17.3]} 41. cxd5 {[%clk
0:02:03.1]} 41... Qe8 {[%clk 0:00:15]} 42. dxe6 {[%clk 0:02:00.4]} 42... Qc6+
{[%clk 0:00:13.6]} 43. Qxc6 {[%clk 0:01:58]} 43... bxc6 {[%clk 0:00:14.5]} 44.
Kf3 {[%clk 0:01:57.5]} 44... Kf6 {[%clk 0:00:15.1]} 45. Kf4 {[%clk 0:01:57.5]}
45... Rxe6 {[%clk 0:00:15.4]} 46. Rxe6+ {[%clk 0:01:56.5]} 46... Kxe6 {[%clk
0:00:16.3]} 47. Kg5 {[%clk 0:01:56.1]} 47... Kf7 {[%clk 0:00:16.2]} 48. Kh6
{[%clk 0:01:55.1]} 48... Kf6 {[%clk 0:00:16]} 49. Kh7 {[%clk 0:01:49]} 49... Kf7
{[%clk 0:00:15.7]} 50. f4 {[%clk 0:01:44.8]} 50... Kf6 {[%clk 0:00:15.9]} 51.
Kg8 {[%clk 0:01:44.8]} 51... Ke6 {[%clk 0:00:14.7]} 52. Kg7 {[%clk 0:01:45]}
52... Kd5 {[%clk 0:00:15.3]} 53. Kxg6 {[%clk 0:01:45.4]} 53... Kc4 {[%clk
0:00:15.9]} 54. Kxf5 {[%clk 0:01:45.4]} 54... Kxb4 {[%clk 0:00:16.4]} 55. Kg6
{[%clk 0:01:42.5]} 55... Kxa5 {[%clk 0:00:10.2]} 56. f5 {[%clk 0:01:42.7]} 56...
c5 {[%clk 0:00:09]} 57. f6 {[%clk 0:01:43]} 57... c4 {[%clk 0:00:09.6]} 58. f7
{[%clk 0:01:43.4]} 58... c3 {[%clk 0:00:10.2]} 59. f8=Q {[%clk 0:01:43.6]} 59...
Ka4 {[%clk 0:00:09.8]} 60. Qa8 {[%clk 0:01:38.6]} 60... a5 {[%clk 0:00:08.8]}
61. Qc6+ {[%clk 0:01:37.8]} 61... Kb3 {[%clk 0:00:08.6]} 62. Qb5+ {[%clk
0:01:37]} 62... Ka2 {[%clk 0:00:08.6]} 63. Qxa5+ {[%clk 0:01:36.9]} 63... Kb2
{[%clk 0:00:09.5]} 64. Kxh5 {[%clk 0:01:36.1]} 1-0

[Event "Early-Titled-Tuesday-Blitz-March-05-2024"]
[Site "Chess.com"]
[Date "2024.03.05"]
[Round "1"]
[White "FoggyMorning"]
[Black "epiclord678"]
[Result "1-0"]
[WhiteElo "2721"]
[BlackElo "2421"]
[TimeControl "180+1"]
[EndTime "8:07:05 PST"]
[Termination "FoggyMorning won by checkmate"]

1. e4 {[%clk 0:03:00.9]} 1... c5 {[%clk 0:03:00]} 2. Nf3 {[%clk 0:03:00.8]} 2...
d6 {[%clk 0:03:00.2]} 3. d4 {[%clk 0:03:01.4]} 3... cxd4 {[%clk 0:03:00.6]} 4.
Nxd4 {[%clk 0:03:02.3]} 4... Nf6 {[%clk 0:03:01.3]} 5. Nc3 {[%clk 0:03:02.9]}
5... a6 {[%clk 0:03:01.9]} 6. h3 {[%clk 0:03:02.9]} 6... e5 {[%clk 0:03:01.9]}
7. Nde2 {[%clk 0:03:02.5]} 7... h5 {[%clk 0:03:00.9]} 8. Bg5 {[%clk 0:03:02.8]}
8... Be6 {[%clk 0:03:00]} 9. Bxf6 {[%clk 0:03:03.3]} 9... Qxf6 {[%clk
0:02:58.7]} 10. Nd5 {[%clk 0:03:04.2]} 10... Qd8 {[%clk 0:02:52.4]} 11. Nec3
{[%clk 0:03:04.5]} 11... Nd7 {[%clk 0:02:50]} 12. a4 {[%clk 0:03:00.3]} 12...
Rc8 {[%clk 0:02:41.9]} 13. Be2 {[%clk 0:02:58.1]} 13... Be7 {[%clk 0:02:40.1]}
14. a5 {[%clk 0:02:56.5]} 14... Nf6 {[%clk 0:02:25.1]} 15. Nxf6+ {[%clk
0:02:25.3]} 15... Bxf6 {[%clk 0:02:20.9]} 16. Bxh5 {[%clk 0:02:25.9]} 16... Rc5
{[%clk 0:02:09]} 17. Bg4 {[%clk 0:01:53.3]} 17... Bxg4 {[%clk 0:01:33]} 18. Qxg4
{[%clk 0:01:54.2]} 18... Rxa5 {[%clk 0:01:32.6]} 19. Rxa5 {[%clk 0:01:51.6]}
19... Qxa5 {[%clk 0:01:32.3]} 20. Qc8+ {[%clk 0:01:48.6]} 20... Bd8 {[%clk
0:01:30.7]} 21. O-O {[%clk 0:01:46.9]} 21... Qc7 {[%clk 0:01:25.3]} 22. Qg4
{[%clk 0:01:34.6]} 22... O-O {[%clk 0:01:25.3]} 23. Rd1 {[%clk 0:01:34.1]} 23...
Qc6 {[%clk 0:01:17.7]} 24. Qe2 {[%clk 0:01:27.9]} 24... Bb6 {[%clk 0:01:11.9]}
25. Nd5 {[%clk 0:01:27.4]} 25... Re8 {[%clk 0:01:07.6]} 26. Qg4 {[%clk
0:01:17.5]} 26... Bd8 {[%clk 0:01:01.8]} 27. c3 {[%clk 0:01:16.2]} 27... g6
{[%clk 0:00:55]} 28. h4 {[%clk 0:01:15.3]} 28... Re6 {[%clk 0:00:43.9]} 29. h5
{[%clk 0:01:15]} 29... Kg7 {[%clk 0:00:41.8]} 30. Ne3 {[%clk 0:01:10.4]} 30...
Kh7 {[%clk 0:00:25]} 31. hxg6+ {[%clk 0:01:02]} 31... Rxg6 {[%clk 0:00:24.6]}
32. Qf3 {[%clk 0:01:00.6]} 32... Rf6 {[%clk 0:00:18.7]} 33. Nf5 {[%clk
0:00:59.1]} 33... Rxf5 {[%clk 0:00:13.3]} 34. Qxf5+ {[%clk 0:00:58.8]} 34... Kg7
{[%clk 0:00:13.5]} 35. Rd3 {[%clk 0:00:58.3]} 35... Be7 {[%clk 0:00:10.5]} 36.
Rg3+ {[%clk 0:00:54]} 36... Kf8 {[%clk 0:00:10.9]} 37. Rf3 {[%clk 0:00:53.2]}
37... f6 {[%clk 0:00:09.3]} 38. Rh3 {[%clk 0:00:50.1]} 38... Ke8 {[%clk
0:00:06.2]} 39. Rh8+ {[%clk 0:00:49.1]} 39... Kf7 {[%clk 0:00:03.7]} 40. Rh7+
{[%clk 0:00:45.6]} 40... Ke8 {[%clk 0:00:03.1]} 41. Qe6 {[%clk 0:00:44]} 41...
Qc7 {[%clk 0:00:01.5]} 42. Rh8# {[%clk 0:00:39]} 1-0

[Event "Early-Titled-Tuesday-Blitz-March-05-2024"]
[Site "Chess.com"]
[Date "2024.03.05"]
[Round "1"]
[White "LaPiToB"]
[Black "Let_it_be_1"]
[Result "1-0"]
[WhiteElo "2289"]
[BlackElo "2584"]
[TimeControl "180+1"]
[EndTime "8:07:05 PST"]
[Termination "LaPiToB won by resignation"]

1. d4 {[%clk 0:03:00.9]} 1... d5 {[%clk 0:02:59.2]} 2. c4 {[%clk 0:03:00.7]}
2... e6 {[%clk 0:02:58.6]} 3. Nf3 {[%clk 0:02:59.8]} 3... Nf6 {[%clk 0:02:57.9]}
4. Nc3 {[%clk 0:02:59.7]} 4... Be7 {[%clk 0:02:58.2]} 5. Bf4 {[%clk 0:02:59]}
5... O-O {[%clk 0:02:57.1]} 6. e3 {[%clk 0:02:59.3]} 6... Nbd7 {[%clk
0:02:56.6]} 7. cxd5 {[%clk 0:02:45.6]} 7... exd5 {[%clk 0:02:56.3]} 8. Bd3
{[%clk 0:02:45.3]} 8... c6 {[%clk 0:02:56.4]} 9. O-O {[%clk 0:02:45.3]} 9... Re8
{[%clk 0:02:56.5]} 10. a3 {[%clk 0:02:41.7]} 10... a5 {[%clk 0:02:56]} 11. Qc2
{[%clk 0:02:41.1]} 11... Nf8 {[%clk 0:02:55.2]} 12. Rab1 {[%clk 0:02:40]} 12...
Ng6 {[%clk 0:02:51.1]} 13. Bg3 {[%clk 0:02:38.6]} 13... Bd6 {[%clk 0:02:50.6]}
14. b4 {[%clk 0:02:33.4]} 14... axb4 {[%clk 0:02:50.2]} 15. axb4 {[%clk
0:02:34.3]} 15... b5 {[%clk 0:02:46]} 16. Rfc1 {[%clk 0:02:18.7]} 16... Bxg3
{[%clk 0:02:10.3]} 17. hxg3 {[%clk 0:02:17]} 17... Bd7 {[%clk 0:02:10.7]} 18.
Nd2 {[%clk 0:02:12.9]} 18... Qe7 {[%clk 0:02:02.5]} 19. Ne2 {[%clk 0:01:48.2]}
19... Qd6 {[%clk 0:01:31.4]} 20. Bf5 {[%clk 0:01:43.4]} 20... Rec8 {[%clk
0:01:23.3]} 21. Bxd7 {[%clk 0:01:41]} 21... Nxd7 {[%clk 0:01:22.6]} 22. Nb3
{[%clk 0:01:38.5]} 22... Nb6 {[%clk 0:01:22.1]} 23. Na5 {[%clk 0:01:29.5]} 23...
Nc4 {[%clk 0:01:20.3]} 24. Nxc4 {[%clk 0:01:25.4]} 24... bxc4 {[%clk 0:01:11]}
25. Nc3 {[%clk 0:01:20.9]} 25... Rcb8 {[%clk 0:00:55.5]} 26. b5 {[%clk
0:01:12.9]} 26... cxb5 {[%clk 0:00:50]} 27. Rxb5 {[%clk 0:01:10]} 27... Rxb5
{[%clk 0:00:48.2]} 28. Nxb5 {[%clk 0:01:10.2]} 28... Qc6 {[%clk 0:00:46.5]} 29.
Nc3 {[%clk 0:01:07.7]} 29... Ne7 {[%clk 0:00:45.2]} 30. Rb1 {[%clk 0:01:06.9]}
30... g6 {[%clk 0:00:42.8]} 31. Qb2 {[%clk 0:01:03.8]} 31... Qd6 {[%clk
0:00:17.1]} 32. Qb7 {[%clk 0:00:56]} 32... Ra3 {[%clk 0:00:16.9]} 33. Nb5 {[%clk
0:00:54.9]} 33... Qa6 {[%clk 0:00:15.6]} 34. Qb8+ {[%clk 0:00:53.1]} 34... Kg7
{[%clk 0:00:14.8]} 35. Nxa3 {[%clk 0:00:53]} 35... Qxa3 {[%clk 0:00:15.4]} 36.
Qe5+ {[%clk 0:00:48.3]} 36... Kh6 {[%clk 0:00:12.6]} 37. Rb7 {[%clk 0:00:40.8]}
37... c3 {[%clk 0:00:11.4]} 38. Rxe7 {[%clk 0:00:29.3]} 38... c2 {[%clk
0:00:11.2]} 39. Qf4+ {[%clk 0:00:29.6]} 1-0

[Event "Early-Titled-Tuesday-Blitz-March-05-2024"]
[Site "Chess.com"]
[Date "2024.03.05"]
[Round "1"]
[White "JiiHart"]
[Black "RedFirePanda"]
[Result "0-1"]
[WhiteElo "2169"]
[BlackElo "2551"]
[TimeControl "180+1"]
[EndTime "8:07:06 PST"]
[Termination "RedFirePanda won by resignation"]

1. e4 {[%clk 0:03:00]} 1... d5 {[%clk 0:02:59.5]} 2. exd5 {[%clk 0:03:00]} 2...
Qxd5 {[%clk 0:03:00.4]} 3. d4 {[%clk 0:03:00.4]} 3... e5 {[%clk 0:02:57.4]} 4.
Nf3 {[%clk 0:03:00.4]} 4... exd4 {[%clk 0:02:53.7]} 5. Qxd4 {[%clk 0:03:00.1]}
5... Qxd4 {[%clk 0:02:45.9]} 6. Nxd4 {[%clk 0:03:01]} 6... Nf6 {[%clk
0:02:35.8]} 7. Nc3 {[%clk 0:02:56.2]} 7... c6 {[%clk 0:02:33.5]} 8. Bd3 {[%clk
0:02:47.4]} 8... Bc5 {[%clk 0:02:29.5]} 9. Nf5 {[%clk 0:02:41.8]} 9... O-O
{[%clk 0:02:27.5]} 10. O-O {[%clk 0:02:41.4]} 10... Nbd7 {[%clk 0:02:22.8]} 11.
Bd2 {[%clk 0:02:36.5]} 11... Ne5 {[%clk 0:02:21.3]} 12. Ne4 {[%clk 0:02:20.8]}
12... Nxd3 {[%clk 0:01:58.8]} 13. Nxf6+ {[%clk 0:02:08.2]} 13... gxf6 {[%clk
0:01:41.2]} 14. Nh6+ {[%clk 0:02:07.3]} 14... Kg7 {[%clk 0:01:41.7]} 15. cxd3
{[%clk 0:02:06.9]} 15... Rd8 {[%clk 0:01:39.6]} 16. Bc3 {[%clk 0:01:50.6]} 16...
Kxh6 {[%clk 0:01:35.6]} 17. Rac1 {[%clk 0:01:45.7]} 17... Rxd3 {[%clk
0:01:28.1]} 18. Bxf6 {[%clk 0:01:41]} 18... Bd4 {[%clk 0:01:26.4]} 19. Be7
{[%clk 0:01:29]} 19... Be6 {[%clk 0:01:22.5]} 20. b3 {[%clk 0:01:24.5]} 20...
Re8 {[%clk 0:01:14.8]} 21. Bh4 {[%clk 0:01:21]} 21... Rd2 {[%clk 0:01:09.4]} 22.
Rcd1 {[%clk 0:01:19.5]} 22... Rxd1 {[%clk 0:01:05.5]} 23. Rxd1 {[%clk
0:01:19.6]} 23... Be5 {[%clk 0:01:04.8]} 24. Re1 {[%clk 0:01:14.4]} 24... Bc7
{[%clk 0:01:01.6]} 25. g4 {[%clk 0:01:02.3]} 25... Rg8 {[%clk 0:00:57.6]} 26. h3
{[%clk 0:00:59.4]} 26... Kg6 {[%clk 0:00:55.2]} 27. f3 {[%clk 0:00:57.3]} 27...
h5 {[%clk 0:00:53.9]} 28. Kf2 {[%clk 0:00:51.6]} 28... hxg4 {[%clk 0:00:52.7]}
29. hxg4 {[%clk 0:00:52.1]} 29... Rh8 {[%clk 0:00:51.4]} 30. Bg3 {[%clk
0:00:48.4]} 30... Bxg3+ {[%clk 0:00:50.5]} 31. Kxg3 {[%clk 0:00:49.3]} 31... Rd8
{[%clk 0:00:48.7]} 32. Re3 {[%clk 0:00:47.6]} 32... Rd2 {[%clk 0:00:41.4]} 33.
a3 {[%clk 0:00:47.8]} 33... Rb2 {[%clk 0:00:40]} 34. b4 {[%clk 0:00:47.8]} 34...
Rb3 {[%clk 0:00:40.2]} 35. Rxb3 {[%clk 0:00:43.9]} 35... Bxb3 {[%clk 0:00:41.1]}
36. f4 {[%clk 0:00:44.6]} 36... b6 {[%clk 0:00:32.4]} 37. Kh4 {[%clk 0:00:34.1]}
37... c5 {[%clk 0:00:31]} 38. f5+ {[%clk 0:00:34.4]} 38... Kf6 {[%clk
0:00:29.5]} 39. Kg3 {[%clk 0:00:30.5]} 39... cxb4 {[%clk 0:00:27.8]} 40. axb4
{[%clk 0:00:30.8]} 40... a5 {[%clk 0:00:25.7]} 41. bxa5 {[%clk 0:00:30.9]} 41...
bxa5 {[%clk 0:00:26.6]} 42. Kf4 {[%clk 0:00:31.5]} 42... a4 {[%clk 0:00:25.1]}
43. g5+ {[%clk 0:00:32]} 43... Kg7 {[%clk 0:00:25.2]} 44. Ke3 {[%clk 0:00:26.8]}
44... a3 {[%clk 0:00:25.3]} 0-1

[Event "Early-Titled-Tuesday-Blitz-March-05-2024"]
[Site "Chess.com"]
[Date "2024.03.05"]
[Round "1"]
[White "Dale"]
[Black "Actuary44"]
[Result "0-1"]
[WhiteElo "2092"]
[BlackElo "2541"]
[TimeControl "180+1"]
[EndTime "8:07:06 PST"]
[Termination "Actuary44 won on time"]

1. Nf3 {[%clk 0:03:00.9]} 1... d6 {[%clk 0:02:57.9]} 2. g3 {[%clk 0:02:59.3]}
2... e5 {[%clk 0:02:58]} 3. d4 {[%clk 0:02:53.3]} 3... e4 {[%clk 0:02:57.2]} 4.
Nh4 {[%clk 0:02:53.2]} 4... f5 {[%clk 0:02:55.4]} 5. c4 {[%clk 0:02:49.3]} 5...
Nf6 {[%clk 0:02:53.2]} 6. Nc3 {[%clk 0:02:48.8]} 6... g6 {[%clk 0:02:52.1]} 7.
Bg2 {[%clk 0:02:37.8]} 7... Bg7 {[%clk 0:02:52.3]} 8. O-O {[%clk 0:02:34.8]}
8... c6 {[%clk 0:02:51.6]} 9. d5 {[%clk 0:02:31]} 9... O-O {[%clk 0:02:50.6]}
10. f3 {[%clk 0:02:23.6]} 10... cxd5 {[%clk 0:02:47]} 11. Nxd5 {[%clk
0:02:16.6]} 11... Nxd5 {[%clk 0:02:42]} 12. Qxd5+ {[%clk 0:02:13.2]} 12... Kh8
{[%clk 0:02:41.1]} 13. fxe4 {[%clk 0:02:05.1]} 13... fxe4 {[%clk 0:02:31.3]} 14.
Rxf8+ {[%clk 0:02:03]} 14... Qxf8 {[%clk 0:02:32.2]} 15. Bxe4 {[%clk 0:01:55.7]}
15... Nc6 {[%clk 0:02:24.1]} 16. Bg5 {[%clk 0:01:38.5]} 16... Bh3 {[%clk
0:01:34.9]} 17. Rd1 {[%clk 0:01:27.8]} 17... Bxb2 {[%clk 0:01:02.3]} 18. Rb1
{[%clk 0:01:14.3]} 18... Bf6 {[%clk 0:00:45.2]} 19. Nf3 {[%clk 0:01:05.6]} 19...
Re8 {[%clk 0:00:23.9]} 20. Rxb7 {[%clk 0:01:01.4]} 20... Nd8 {[%clk 0:00:17.8]}
21. Rxa7 {[%clk 0:00:49.1]} 21... Ne6 {[%clk 0:00:18.1]} 22. Bxf6+ {[%clk
0:00:43.5]} 22... Qxf6 {[%clk 0:00:19]} 23. Qxd6 {[%clk 0:00:43.7]} 23... Qa1+
{[%clk 0:00:14.5]} 24. Kf2 {[%clk 0:00:38.9]} 24... Ng7 {[%clk 0:00:12.1]} 25.
Qd3 {[%clk 0:00:27.8]} 25... Nf5 {[%clk 0:00:08.8]} 26. Ne1 {[%clk 0:00:11.4]}
26... Qf6 {[%clk 0:00:08.6]} 27. Bxf5 {[%clk 0:00:05.4]} 27... Bxf5 {[%clk
0:00:09.5]} 28. Qf3 {[%clk 0:00:04.3]} 28... Qb6+ {[%clk 0:00:09.4]} 29. c5
{[%clk 0:00:02]} 29... Qxc5+ {[%clk 0:00:08.6]} 0-1

[Event "Early-Titled-Tuesday-Blitz-March-05-2024"]
[Site "Chess.com"]
[Date "2024.03.05"]
[Round "1"]
[White "Josetricks"]
[Black "aljado"]
[Result "1/2-1/2"]
[WhiteElo "2530"]
[BlackElo "2061"]
[TimeControl "180+1"]
[EndTime "8:07:07 PST"]
[Termination "Game drawn by repetition"]

1. e4 {[%clk 0:02:55.9]} 1... c5 {[%clk 0:02:58.7]} 2. c3 {[%clk 0:02:56.1]}
2... e6 {[%clk 0:02:57.4]} 3. Nf3 {[%clk 0:02:52.3]} 3... d5 {[%clk 0:02:56.9]}
4. exd5 {[%clk 0:02:52.7]} 4... exd5 {[%clk 0:02:56.7]} 5. d4 {[%clk 0:02:53.4]}
5... Nc6 {[%clk 0:02:53.9]} 6. Bd3 {[%clk 0:02:52.6]} 6... Nf6 {[%clk
0:02:53.2]} 7. h3 {[%clk 0:02:52.6]} 7... cxd4 {[%clk 0:02:52.1]} 8. Nxd4 {[%clk
0:02:47]} 8... Nxd4 {[%clk 0:02:51]} 9. cxd4 {[%clk 0:02:47.9]} 9... Bb4+ {[%clk
0:02:48.6]} 10. Nc3 {[%clk 0:02:45.8]} 10... O-O {[%clk 0:02:47.5]} 11. O-O
{[%clk 0:02:45.9]} 11... Be6 {[%clk 0:02:44.8]} 12. Bg5 {[%clk 0:02:44.6]} 12...
h6 {[%clk 0:02:44.5]} 13. Bh4 {[%clk 0:02:44.9]} 13... a6 {[%clk 0:02:42.8]} 14.
Bc2 {[%clk 0:02:43.4]} 14... Rc8 {[%clk 0:02:32.8]} 15. Qd3 {[%clk 0:02:43.1]}
15... g6 {[%clk 0:02:32.4]} 16. Rfe1 {[%clk 0:02:40.9]} 16... Re8 {[%clk
0:02:26]} 17. Qg3 {[%clk 0:02:19.7]} 17... Kg7 {[%clk 0:02:15.1]} 18. Re3 {[%clk
0:02:14]} 18... Nh5 {[%clk 0:01:49.9]} 19. Qe5+ {[%clk 0:02:03.8]} 19... f6
{[%clk 0:01:43.1]} 20. Qh2 {[%clk 0:01:48.8]} 20... g5 {[%clk 0:01:29.8]} 21.
Bg3 {[%clk 0:01:43.7]} 21... Qd7 {[%clk 0:01:27.7]} 22. Bd1 {[%clk 0:01:04.9]}
22... Bf7 {[%clk 0:01:22.2]} 23. Bg4 {[%clk 0:00:42.2]} 23... Qc6 {[%clk
0:01:03.7]} 24. Bxc8 {[%clk 0:00:37.2]} 24... Rxe3 {[%clk 0:00:58.5]} 25. Bxb7
{[%clk 0:00:33.2]} 25... Qxb7 {[%clk 0:00:52.1]} 26. fxe3 {[%clk 0:00:33.2]}
26... Bxc3 {[%clk 0:00:50.8]} 27. bxc3 {[%clk 0:00:33.1]} 27... Qb2 {[%clk
0:00:49.6]} 28. Re1 {[%clk 0:00:27]} 28... Qxa2 {[%clk 0:00:47.9]} 29. Bd6
{[%clk 0:00:23.2]} 29... Qd2 {[%clk 0:00:45.1]} 30. Kf1 {[%clk 0:00:19.4]} 30...
Bg6 {[%clk 0:00:40.5]} 31. Ra1 {[%clk 0:00:11.8]} 31... Qxe3 {[%clk 0:00:32.6]}
32. g4 {[%clk 0:00:06.3]} 32... Bd3+ {[%clk 0:00:27.1]} 33. Kg2 {[%clk
0:00:06.7]} 33... Be4+ {[%clk 0:00:19.3]} 34. Kf1 {[%clk 0:00:06.7]} 34... Bd3+
{[%clk 0:00:19.1]} 35. Kg2 {[%clk 0:00:07]} 35... Be4+ {[%clk 0:00:19.4]} 36.
Kf1 {[%clk 0:00:07.5]} 36... Bd3+ {[%clk 0:00:19.6]} 1/2-1/2

[Event "Early-Titled-Tuesday-Blitz-March-05-2024"]
[Site "Chess.com"]
[Date "2024.03.05"]
[Round "1"]
[White "Mesa_1"]
[Black "XDPS"]
[Result "0-1"]
[WhiteElo "2487"]
[BlackElo "2903"]
[TimeControl "180+1"]
[EndTime "8:07:08 PST"]
[Termination "XDPS won by resignation"]

1. e4 {[%clk 0:03:00.9]} 1... g6 {[%clk 0:03:00.2]} 2. d4 {[%clk 0:03:00.5]}
2... Bg7 {[%clk 0:03:00.9]} 3. Nc3 {[%clk 0:03:00.9]} 3... d6 {[%clk 0:03:01.6]}
4. Nf3 {[%clk 0:03:01.1]} 4... a6 {[%clk 0:03:02.2]} 5. Be2 {[%clk 0:03:01.1]}
5... e6 {[%clk 0:03:02.2]} 6. h4 {[%clk 0:02:58.9]} 6... h6 {[%clk 0:03:01.8]}
7. Bf4 {[%clk 0:02:55.1]} 7... Nd7 {[%clk 0:03:01.9]} 8. Qd2 {[%clk 0:02:48.7]}
8... Ngf6 {[%clk 0:02:59.5]} 9. e5 {[%clk 0:02:43]} 9... Nh5 {[%clk 0:02:40]}
10. Bh2 {[%clk 0:02:39.3]} 10... Bf8 {[%clk 0:02:32]} 11. g4 {[%clk 0:02:33.6]}
11... Ng7 {[%clk 0:02:32.4]} 12. O-O-O {[%clk 0:02:23.8]} 12... h5 {[%clk
0:02:32.6]} 13. Ng5 {[%clk 0:02:08.9]} 13... hxg4 {[%clk 0:02:25.6]} 14. Bxg4
{[%clk 0:02:06.2]} 14... Rxh4 {[%clk 0:02:25]} 15. f3 {[%clk 0:01:42.1]} 15...
Nf5 {[%clk 0:02:14.8]} 16. d5 {[%clk 0:01:27.3]} 16... Rxh2 {[%clk 0:01:51.6]}
17. Rxh2 {[%clk 0:01:03.7]} 17... Nxe5 {[%clk 0:01:50.5]} 18. dxe6 {[%clk
0:00:53.1]} 18... Bxe6 {[%clk 0:01:50.4]} 19. Rh8 {[%clk 0:00:45]} 19... Qe7
{[%clk 0:01:28.9]} 20. Bxf5 {[%clk 0:00:36.1]} 20... gxf5 {[%clk 0:01:29.8]} 21.
Nh7 {[%clk 0:00:32.2]} 21... O-O-O {[%clk 0:01:28.8]} 22. Rxf8 {[%clk
0:00:30.8]} 22... Rxf8 {[%clk 0:01:29.7]} 23. Nxf8 {[%clk 0:00:31]} 23... Qxf8
{[%clk 0:01:30.6]} 24. f4 {[%clk 0:00:29.3]} 24... Ng6 {[%clk 0:01:30.1]} 25.
Qe3 {[%clk 0:00:26]} 25... Qh6 {[%clk 0:01:26.8]} 26. Rf1 {[%clk 0:00:24.3]}
26... Kb8 {[%clk 0:01:25.1]} 27. a4 {[%clk 0:00:24.7]} 27... Qh2 {[%clk
0:01:24.6]} 28. a5 {[%clk 0:00:22.2]} 28... Qg2 {[%clk 0:01:23]} 29. Rg1 {[%clk
0:00:20.5]} 29... Qh2 {[%clk 0:01:18.1]} 30. Rxg6 {[%clk 0:00:19.3]} 30... fxg6
{[%clk 0:01:10.1]} 31. Qxe6 {[%clk 0:00:19.6]} 31... Qxf4+ {[%clk 0:01:04.5]}
32. Kb1 {[%clk 0:00:20]} 32... g5 {[%clk 0:01:01]} 33. Qe8+ {[%clk 0:00:20.4]}
33... Ka7 {[%clk 0:01:01.2]} 34. Qd7 {[%clk 0:00:21]} 34... Qf1+ {[%clk
0:00:58.6]} 35. Ka2 {[%clk 0:00:21.6]} 35... Qc4+ {[%clk 0:00:59.2]} 36. Kb1
{[%clk 0:00:22.1]} 36... f4 {[%clk 0:00:55.6]} 37. Qf5 {[%clk 0:00:22]} 37...
Qc5 {[%clk 0:00:46.7]} 38. Qe4 {[%clk 0:00:19.5]} 38... Qxa5 {[%clk 0:00:44.4]}
39. b4 {[%clk 0:00:20]} 39... Qe5 {[%clk 0:00:43.5]} 40. Qxe5 {[%clk 0:00:20.3]}
40... dxe5 {[%clk 0:00:44]} 41. Ne4 {[%clk 0:00:21.2]} 41... g4 {[%clk
0:00:44.3]} 42. c4 {[%clk 0:00:21.8]} 42... g3 {[%clk 0:00:44.7]} 43. Ng5 {[%clk
0:00:21.5]} 43... g2 {[%clk 0:00:41.9]} 44. Nf3 {[%clk 0:00:20.5]} 44... e4
{[%clk 0:00:42]} 0-1